fUSD/lending_fUSD_20251129
["ID","MTS","AMOUNT","RATE_DAILY","PERIOD"]
[395092849,1764421843620,-151.0,0.00016937,2]
[395092851,1764421843629,-298.176984,0.00016937,2]
[395092853,1764421843638,-151.0,0.00016937,2]
[395092855,1764421843648,-151.0,0.00016937,2]
[395092857,1764421843657,-1000.0,0.0001697,2]
[395092859,1764421843671,-500.0,0.0001697,2]
[395092861,1764421843681,-9188.09869075,0.00016971,2]
[395092863,1764421843691,-500.0,0.00016973,2]
[395092865,1764421843700,-501.07652407,0.00016973,2]
[395092867,1764421843710,-500.0,0.00016973,2]
[395092869,1764421843720,-500.0,0.00016973,2]
[395092870,1764421843729,-501.83712892,0.00016973,2]
[395092872,1764421843739,-511.66567049,0.00016973,2]
[395092874,1764421843750,-500.0,0.00016973,2]
[395092877,1764421843760,-500.0,0.00016973,2]
[395092878,1764421843769,-500.0,0.00016973,2]
[395092880,1764421843779,-160.05320406,0.00016973,2]
[395092883,1764421843789,-160.67276753,0.00016973,2]
[395092884,1764421843798,-500.0,0.00016973,2]
[395092887,1764421843808,-500.0,0.00016973,2]
[395092888,1764421843818,-500.0,0.00016973,2]
[395092890,1764421843828,-500.0,0.00016973,2]
[395092893,1764421843838,-500.0,0.00016973,2]
[395092894,1764421843848,-500.0,0.00016973,2]
[395092896,1764421843858,-500.0,0.00016973,2]
[395092898,1764421843867,-500.0,0.00016973,2]
[395092899,1764421843877,-338.74802037,0.00016973,2]
[395092900,1764421843885,-230.20656864,0.00016973,2]
[395092901,1764421843894,-500.0,0.00016973,2]
[395092902,1764421843903,-500.0,0.00016973,2]
[395092903,1764421843913,-500.0,0.00016973,2]
[395092904,1764421843921,-500.0,0.00016973,2]
[395092905,1764421843930,-500.0,0.00016973,2]
[395092906,1764421843939,-154.71278352,0.00016973,2]
[395092907,1764421843948,-500.0,0.00016973,2]
[395092908,1764421843956,-500.0,0.00016973,2]
[395092909,1764421843965,-500.0,0.00016973,2]
[395092910,1764421843973,-727.79587516,0.00016973,7]
[395092911,1764421843982,-151.0,0.00016973,2]
[395092912,1764421843991,-308.627336,0.00016973,2]
[395092913,1764421844000,-308.627336,0.00016973,2]
[395092915,1764421844008,-151.0,0.00016973,2]
[395092917,1764421844017,-151.0,0.00016973,2]
[395092918,1764421844026,-308.627336,0.00016973,2]
[395092919,1764421844035,-151.0,0.00016973,2]
[395092921,1764421844044,-151.0,0.00016973,2]
[395092923,1764421844053,-308.627336,0.00016973,2]
[395092925,1764421844063,-161.791039,0.00016973,2]
[395092927,1764421844072,-151.0,0.00016973,2]
[395092929,1764421844081,-151.0,0.00016973,2]
[395092931,1764421844090,-191.740232,0.00016973,2]
[395092933,1764421844100,-284.77095,0.00016973,2]
[395092934,1764421844108,-284.77095,0.00016973,2]
[395092936,1764421844118,-284.77095,0.00016973,2]
[395092938,1764421844127,-151.0,0.00016973,2]
[395092940,1764421844139,-284.77095,0.00016973,2]
[395092942,1764421844152,-151.0,0.00016973,2]
[395092944,1764421844161,-151.0,0.00016973,2]
[395092946,1764421844171,-151.0,0.00016973,2]
[395092948,1764421844180,-151.0,0.00016973,2]
[395092950,1764421844189,-151.0,0.00016973,2]
[395092952,1764421844199,-151.0,0.00016973,2]
[395092954,1764421844208,-151.0,0.00016973,2]
[395092956,1764421844218,-151.0,0.00016973,2]
[395092958,1764421844228,-151.0,0.00016973,2]
[395092960,1764421844238,-186.1684,0.00016973,2]
[395092962,1764421844247,-151.0,0.00016973,2]
[395092964,1764421844257,-294.294307,0.00016973,2]
[395092966,1764421844266,-151.0,0.00016973,2]
[395092968,1764421844275,-295.528141,0.00016973,2]
[395092970,1764421844283,-694.140635,0.00016973,2]
[395092972,1764421844293,-694.140635,0.00016973,2]
[395092974,1764421844303,-160.108221,0.00016973,2]
[395092976,1764421844312,-694.140635,0.00016973,2]
[395092978,1764421844321,-410.091726,0.00016973,2]
[395092980,1764421844330,-694.140635,0.00016973,2]
[395092982,1764421844339,-410.091726,0.00016973,2]
[395092984,1764421844347,-164.202385,0.00016973,2]
[395092986,1764421844356,-410.091726,0.00016973,2]
[395092987,1764421844365,-164.202385,0.00016973,2]
[395092989,1764421844374,-410.091726,0.00016973,2]
[395092991,1764421844383,-164.202385,0.00016973,2]
[395092993,1764421844392,-164.202385,0.00016973,2]
[395092995,1764421844402,-151.0,0.00016973,2]
[395092997,1764421844411,-151.0,0.00016973,2]
[395092999,1764421844421,-189.621142,0.00016973,2]
[395093001,1764421844430,-248.795268,0.00016973,2]
[395093003,1764421844439,-248.795268,0.00016973,2]
[395093005,1764421844448,-248.795268,0.00016973,2]
[395093007,1764421844457,-198.979555,0.00016973,2]
[395093009,1764421844466,-248.795268,0.00016973,2]
[395093011,1764421844475,-151.0,0.00016973,2]
[395093013,1764421844483,-151.0,0.00016973,2]
[395093015,1764421844493,-750.579508,0.00016973,2]
[395093017,1764421844502,-750.579508,0.00016973,2]
[395093019,1764421844512,-750.579508,0.00016973,2]
[395093021,1764421844521,-750.579508,0.00016973,2]
[395093022,1764421844530,-3094.30864244,0.00016998,2]
[395093024,1764421844539,-300.0,0.00016999,2]
[395093026,1764421844549,-300.0,0.00016999,2]
[395093028,1764421844558,-300.0,0.00016999,2]
[395093030,1764421844567,-300.0,0.00016999,2]
[395093032,1764421844576,-802872.04968615,0.00017,2]
[395093034,1764421844585,-1000.0,0.00017,2]
[395093036,1764421844595,-1000.0,0.00017,2]
[395093038,1764421844604,-1002.0,0.00017,2]
[395093040,1764421844613,-110179.48129972,0.00017,2]
[395093049,1764421844701,-596.298,0.00017,2]
[395093142,1764421852574,-456.41102697,0.00014758,2]
[395093143,1764421855819,-242.35790292,0.00014758,2]
[395093144,1764421859632,-340.55394441,0.00014758,2]
[395093145,1764421861459,-168.64840657,0.00014758,2]
[395093149,1764421863369,-159.44605559,0.00014757,2]
[395093154,1764421865116,-140.55394441,0.00014757,2]
[395093155,1764421865141,-67.80152502,0.00014758,2]
[395093161,1764421867105,-210.28007628,0.00014758,2]
[395093165,1764421869710,-250.0,0.00014757,2]
[395093166,1764421869736,-245.64183113,0.00014758,2]
[395093167,1764421872099,-414.11772154,0.00014758,2]
[395093168,1764421873797,-228.55288944,0.00014758,2]
[395093169,1764421876403,-168.0,0.00014758,2]
[395093170,1764421878980,-212.0,0.00014758,2]
[395093172,1764421881741,-157.98821696,0.00014758,2]
[395093173,1764421885030,-410.22419685,0.00014758,2]
[395093174,1764421888183,-202.84926283,0.00014758,2]
[395093175,1764421892160,-194.13143667,0.00014758,2]
[395093176,1764421894828,600.9,7.897e-05,2]
[395093177,1764421895077,600.9,8.312e-05,2]
[395093178,1764421895270,600.9,8.728e-05,2]
[395093179,1764421895451,600.9,9.143e-05,2]
[395093180,1764421895700,600.9,9.559e-05,2]
[395093181,1764421895940,600.9,9.975e-05,2]
[395093183,1764421896278,600.9,0.0001039,2]
[395093184,1764421896375,1752.862,0.00014463,2]
[395093185,1764421896448,165.166,0.00014463,2]
[395093186,1764421896511,600.9,0.00010806,2]
[395093187,1764421896728,600.9,0.00011221,2]
[395093188,1764421897388,600.9,0.00011637,2]
[395093189,1764421897631,600.9,0.00012053,2]
[395093190,1764421897896,600.9,0.00012468,2]
[395093191,1764421898135,600.9,0.00012884,2]
[395093192,1764421898321,600.9,0.000133,2]
[395093193,1764421898532,600.9,0.00013715,2]
[395093194,1764421898691,600.9,0.00014131,2]
[395093195,1764421898797,-304.45214202,0.00014758,2]
[395093196,1764421899124,600.9,0.00014546,2]
[395093197,1764421905087,-7643.2211056,0.00014758,2]
[395093198,1764421908348,-263.65412142,0.00014758,2]
[395093199,1764421908900,-10000.01,0.00014758,2]
[395093200,1764421909010,-10000.01,0.00014758,2]
[395093201,1764421909027,-10000.01,0.00014758,2]
[395093202,1764421910800,-245.75646741,0.00014758,2]
[395093203,1764421911535,-10000.01,0.00014758,2]
[395093204,1764421911573,-10000.01,0.00014758,2]
[395093205,1764421912219,-188.78514395,0.00014758,2]
[395093206,1764421915000,-159.29900526,0.00014758,2]
[395093207,1764421916483,-245.70581276,0.00014758,2]
[395093208,1764421919488,-300.0,0.00014758,2]
[395093209,1764421920546,-441.52453199,0.00014758,2]
[395093210,1764421920785,10000.01,0.00014658,2]
[395093211,1764421920810,2224.53624444,0.00014658,2]
[395093212,1764421923638,-195.0,0.00014757,2]
[395093213,1764421925943,-105.0,0.00014757,2]
[395093214,1764421925965,-150.0,0.00014757,2]
[395093215,1764421925991,-55.09468314,0.00014758,2]
[395093216,1764421927452,-230.98931306,0.00014758,2]
[395093217,1764421930035,-267.9696451,0.00014758,2]
[395093218,1764421931566,-283.57635044,0.00014758,2]
[395093219,1764421934124,-186.36171461,0.00014758,2]
[395093220,1764421936192,1013.30342659,0.00014658,2]
[395093221,1764421937144,250.0,8.977e-05,2]
[395093222,1764421938001,-183.00503146,0.00014758,2]
[395093223,1764421939570,-363.38433718,0.00014758,2]
[395093224,1764421946169,-310.70999459,0.00014758,2]
[395093226,1764421949394,-172.62852235,0.00014758,2]
[395093227,1764421953510,-301.3972392,0.00014758,2]
[395093234,1764421959202,-800.00814047,0.00014758,2]
[395093235,1764421963927,-289.71992371,0.00014758,2]
[395093236,1764421966932,2108.373604,0.00014684,2]
[395093237,1764421968343,-342.24955647,0.00014757,2]
[395093238,1764421969167,500.0,0.00014663,2]
[395093239,1764421973610,-185.11498956,0.00014756,2]
[395093240,1764421976698,-201.60415818,0.00014756,2]
[395093241,1764421978421,-260.19355119,0.00014756,2]
[395093242,1764421983389,-392.73962249,0.00014756,2]
[395093244,1764421988647,-160.34767858,0.00014756,2]
[395093245,1764421988670,-46.2002833,0.00014757,2]
[395093246,1764421988694,-80.19352531,0.00014757,2]
[395093247,1764421989738,-375.60849813,0.00014757,2]
[395093248,1764421991563,-44.19797656,0.00014757,2]
[395093249,1764421991586,-255.80202344,0.00014757,2]
[395093250,1764421993645,-229.84748584,0.00014757,2]
[395093251,1764421997494,-14.35049072,0.00014757,2]
[395093252,1764421997518,-285.64950928,0.00014757,2]
[395093253,1764422000259,-98.44471626,0.00014757,2]
[395093254,1764422000283,-282.53463766,0.00014757,2]
[395093255,1764422000309,-119.02064608,0.00014757,2]
[395093256,1764422002214,-160.22906631,0.00014757,2]
[395093257,1764422004267,-176.4498635,0.00014757,2]
[395093258,1764422008376,-44.30042411,0.00014757,2]
[395093259,1764422008403,-200.7170109,0.00014757,2]
[395093260,1764422012805,1000.0,0.00014658,2]
[395093261,1764422014114,-159.9155177,0.00014757,2]
[395093262,1764422021135,-139.3674714,0.00014757,2]
[395093263,1764422021157,-19.47404252,0.00014757,2]
[395093264,1764422031154,-187.42409288,0.00014757,2]
[395093265,1764422032624,-159.2656068,0.00014757,2]
[395093266,1764422034322,-133.8362578,0.00014757,2]
[395093267,1764422034352,-93.67231738,0.00014757,2]
[395093268,1764422035811,-217.76660389,0.00014757,2]
[395093269,1764422040510,-188.56107873,0.00014757,2]
[395093270,1764422040532,-301.05104951,0.00014757,2]
[395093271,1764422040557,-318.60669344,0.00014757,2]
[395093272,1764422043795,-181.39330656,0.00014757,2]
[395093274,1764422044240,-318.60669344,0.00014757,2]
[395093275,1764422047006,-181.39330656,0.00014757,2]
[395093276,1764422047029,-215.92294338,0.00014757,2]
[395093277,1764422048765,-174.03173377,0.00014757,2]
[395093278,1764422051728,-110.04532285,0.00014757,2]
[395093279,1764422051757,-389.95467715,0.00014757,2]
[395093280,1764422053592,-110.04532285,0.00014757,2]
[395093281,1764422053614,-500.0,0.00014757,2]
[395093282,1764422053641,-415.8019033,0.00014757,2]
[395093283,1764422053664,-500.0,0.00014757,2]
[395093284,1764422053693,-67.10316768,0.00014757,2]
[395093285,1764422055871,-371.28199678,0.00014757,2]
[395093286,1764422058122,-61.61483554,0.00014757,2]
[395093287,1764422058145,-384.63443363,0.00014757,2]
[395093288,1764422059006,245.7626,0.00014658,2]
[395093289,1764422060048,-115.36556637,0.00014757,2]
[395093290,1764422060070,-76.41561195,0.00014757,2]
[395093291,1764422061550,2500.0,0.00014658,2]
[395093292,1764422063065,-350.0,0.00014757,2]
[395093293,1764422065082,-339.7753563,0.00014757,2]
[395093295,1764422068735,-182.9108029,0.00014757,2]
[395093296,1764422072194,-308.21882185,0.00014757,2]
[395093297,1764422073675,-488.1660734,0.00014757,2]
[395093298,1764422073697,-11.8339266,0.00014758,2]
[395093299,1764422076050,-289.2812312,0.00014758,2]
[395093300,1764422077971,-249.54801596,0.00014758,2]
[395093301,1764422080138,-198.98171055,0.00014758,2]
[395093302,1764422082535,-55.16398835,0.00014758,2]
[395093303,1764422082558,-133.85401074,0.00014758,2]
[395093304,1764422084770,-500.0,0.00014758,2]
[395093305,1764422087313,-180.52100851,0.00014758,2]
[395093307,1764422089500,-157.51062533,0.00014758,2]
[395093308,1764422093349,-250.0,0.00014758,2]
[395093309,1764422094916,-167.09899149,0.00014757,2]
[395093310,1764422097001,9320.52834543,0.00014658,2]
[395093311,1764422097142,-332.90100851,0.00014757,2]
[395093312,1764422097166,-122.71899149,0.00014757,2]
[395093313,1764422098996,-57.80201702,0.00014757,2]
[395093314,1764422099761,-420.57059372,0.00014757,2]
[395093315,1764422099786,-13.4710116,0.00014758,2]
[395093316,1764422101442,-300.0,0.00014757,2]
[395093317,1764422101452,-300.0,0.00014757,2]
[395093318,1764422101463,-2050.80369493,0.00014758,2]
[395093319,1764422104817,-232.09839468,0.00014757,2]
[395093320,1764422107456,-967.90160532,0.00014757,2]
[395093321,1764422107485,-150.0,0.00014757,2]
[395093322,1764422107713,-7764.20678936,0.00014758,2]
[395093323,1764422109851,-296.53582855,0.00014757,2]
[395093325,1764422111984,-244.98932179,0.00014757,2]
[395093326,1764422116273,-255.01067821,0.00014757,2]
[395093327,1764422118372,-56.76059681,0.00014757,2]
[395093328,1764422118397,-99.93123777,0.00014757,2]
[395093329,1764422119569,-177.98947158,0.00014757,2]
[395093330,1764422122477,-250.0,0.00014757,2]
[395093332,1764422137885,500.0,0.00014657,2]
[395093333,1764422143977,-51.79768533,0.00014757,2]
[395093334,1764422144011,-296.53582855,0.00014757,2]
[395093335,1764422144040,-152.38,0.00014757,2]
[395093336,1764422144074,-156.69183458,0.00014757,2]
[395093337,1764422144103,-1656.69225991,0.00014757,2]
[395093338,1764422146989,-4871.81478326,0.00014758,2]
[395093340,1764422155019,-401.79272123,0.00014758,2]
[395093341,1764422156907,-10000.01,0.00014758,2]
[395093342,1764422171941,-649.02927877,0.00014758,2]
[395093343,1764422172205,-10000.01,0.00014758,2]
[395093345,1764422176334,924.5,0.00014446,2]
[395093353,1764422222957,1014.73869156,0.00014658,2]
[395093354,1764422230226,4626.0637,0.00014658,2]
[395093355,1764422237746,2500.0,0.00014658,2]
[395093358,1764422267100,625.18,0.00014429,2]
[395093360,1764422293611,1000.0,0.00014358,2]
[395093361,1764422298460,302.08137114,0.00014558,2]
[395093362,1764422299875,195.0,0.00014458,2]
[395093363,1764422300318,195.0,0.00014638,2]
[395093365,1764422314892,-250.0,0.00014757,2]
[395093366,1764422315046,500.0,0.00014657,2]
[395093367,1764422317740,11359.39005358,0.00014658,2]
[395093368,1764422325264,-212.0,0.00014757,2]
[395093370,1764422332669,-38.0,0.00014757,2]
[395093371,1764422332692,-150.0,0.00014757,2]
[395093372,1764422332718,-390.80653496,0.00014758,2]
[395093373,1764422347797,-221.19346504,0.00014758,2]
[395093376,1764422364000,-9242.6362373,0.00014758,2]
[395093377,1764422366203,-10000.01,0.00014758,2]
[395093379,1764422390664,10000.01,0.00014658,2]
[395093380,1764422390688,9110.731,0.00014658,2]
[395093381,1764422401108,889.279,0.00014658,2]
[395093382,1764422401131,1610.721,0.00014658,2]
[395093383,1764422402332,150.0,6.6e-07,2]
[395093385,1764422414791,-2672.64,0.00014748,2]
[395093386,1764422414819,-1982.09,0.00014748,2]
[395093387,1764422414997,-690.55,0.00014748,2]
[395093388,1764422415027,-155.52277058,0.00014757,2]
[395093389,1764422415056,-483.80776979,0.00014757,2]
[395093390,1764422416648,-6270.07791926,0.00014758,2]
[395093391,1764422416760,-10000.01,0.00014758,2]
[395093392,1764422417460,-222.25445417,0.00014758,2]
[395093393,1764422419961,-10000.01,0.00014758,2]
[395093394,1764422420168,-10000.01,0.00014758,2]
[395093395,1764422420265,-374.178,0.00014758,2]
[395093396,1764422420326,-10000.01,0.00014758,2]
[395093397,1764422420451,-10000.01,0.00014758,2]
[395093398,1764422422142,-10000.01,0.00014758,2]
[395093399,1764422422169,-10000.01,0.00014758,2]
[395093400,1764422422212,-10000.01,0.00014758,2]
[395093401,1764422422258,-300.0,0.00014758,2]
[395093403,1764422454834,-303.71381206,0.00014757,2]
[395093408,1764422477510,224.5872,0.00014657,2]
[395093409,1764422478082,500.0,0.00014435,2]
[395093411,1764422493192,166.66,0.00013721,2]
[395093412,1764422493324,166.66,0.00014009,2]
[395093413,1764422493458,166.66,0.00014298,2]
[395093414,1764422493796,166.66,0.00014587,2]
[395093415,1764422496157,1911.484,0.00014463,2]
[395093416,1764422496306,165.166,0.00014463,2]
[395093418,1764422507648,1235.16,0.00014312,2]
[395093419,1764422510751,941.28828549,0.00014658,2]
[395093421,1764422531114,166.66,0.00014703,2]
[395093423,1764422552174,-151.0,0.00014749,2]
[395093424,1764422552197,-26.66017968,0.00014749,2]
[395093425,1764422554127,-124.33982032,0.00014749,2]
[395093426,1764422554148,-151.0,0.00014749,2]
[395093427,1764422554170,-24.66017968,0.00014749,2]
[395093428,1764422564696,2500.0,0.00014658,2]
[395093433,1764422597208,-624.0,0.00014748,2]
[395093434,1764422597237,-126.33982032,0.00014749,2]
[395093435,1764422597268,-151.0,0.00014749,2]
[395093436,1764422597299,-151.0,0.00014749,2]
[395093437,1764422597329,-151.0,0.00014749,2]
[395093438,1764422597358,-151.0,0.00014749,2]
[395093439,1764422597388,-151.0,0.00014749,2]
[395093440,1764422597420,-151.0,0.00014749,2]
[395093441,1764422597451,-200.0,0.00014749,2]
[395093442,1764422597480,-151.0,0.00014749,2]
[395093443,1764422597510,-151.0,0.00014749,2]
[395093444,1764422597542,-151.0,0.00014749,2]
[395093445,1764422597570,-151.0,0.00014749,2]
[395093446,1764422597598,-151.0,0.00014749,2]
[395093447,1764422598095,-151.0,0.00014749,2]
[395093448,1764422598126,-151.0,0.00014749,2]
[395093449,1764422598156,-151.0,0.00014749,2]
[395093450,1764422598183,-151.0,0.00014749,2]
[395093451,1764422598212,-151.0,0.00014749,2]
[395093452,1764422598242,-151.0,0.00014749,2]
[395093453,1764422598271,-151.0,0.00014749,2]
[395093454,1764422598299,-151.0,0.00014749,2]
[395093455,1764422598328,-151.0,0.00014749,2]
[395093456,1764422598357,-151.0,0.00014749,2]
[395093457,1764422598386,-151.0,0.00014749,2]
[395093458,1764422598413,-218.969743,0.00014749,2]
[395093459,1764422598442,-500.0,0.00014749,2]
[395093460,1764422604436,-196.28618794,0.00014757,2]
[395093461,1764422604464,-500.0,0.00014757,2]
[395093462,1764422604494,-256.12923318,0.00014757,2]
[395093463,1764422604521,-153.66803778,0.00014757,2]
[395093464,1764422604553,-500.0,0.00014757,2]
[395093465,1764422604584,-500.0,0.00014757,2]
[395093466,1764422604612,-500.0,0.00014757,2]
[395093467,1764422604639,-500.0,0.00014757,2]
[395093468,1764422604666,-150.0,0.00014757,2]
[395093469,1764422604693,-394.01424542,0.00014757,2]
[395093470,1764422607493,9233.44750288,0.00014658,2]
[395093472,1764422613083,949.9539,0.00014658,2]
[395093473,1764422616225,1504.59,0.00022,30]
[395093475,1764422625687,235.2676,0.00014658,2]
[395093480,1764422678944,-151.0,0.00014749,2]
[395093481,1764422678973,-307.89911803,0.00014749,2]
[395093482,1764422679005,-500.0,0.00014757,2]
[395093483,1764422679043,-500.0,0.00014757,2]
[395093484,1764422679095,-2184.7787967,0.00014757,2]
[395093486,1764422686183,-6989.61541064,0.00014758,2]
[395093487,1764422688575,-10000.01,0.00014758,2]
[395093489,1764422693597,10000.01,0.00014658,2]
[395093490,1764422693621,1581.83466829,0.00014658,2]
[395093494,1764422721077,-182.63,0.00014757,2]
[395093496,1764422732328,1544.5344,0.00014658,2]
[395093497,1764422733917,-260.19658991,0.00014757,2]
[395093499,1764422750884,-57.17341009,0.00014757,2]
[395093500,1764422750912,-109.48658991,0.00014757,2]
[395093501,1764422752139,-390.51341009,0.00014757,2]
[395093502,1764422752170,-195.0,0.00014757,2]
[395093504,1764422752198,-250.0,0.00014757,2]
[395093505,1764422752230,-300.0,0.00014757,2]
[395093506,1764422752260,-1200.0,0.00014757,2]
[395093507,1764422753113,-274.53084051,0.00014758,2]
[395093508,1764422754341,100000.1,0.000146,2]
[395093509,1764422754999,-500.0,0.00014757,2]
[395093510,1764422755303,-1202.61411153,0.00014758,2]
[395093511,1764422758061,-10000.01,0.00014758,2]
[395093513,1764422762355,-300.0,0.00014757,2]
[395093514,1764422762364,-9700.01,0.00014758,2]
[395093515,1764422765165,-10000.01,0.00014758,2]
[395093516,1764422765388,-324.43492454,0.00014758,2]
[395093521,1764422767268,-10000.01,0.00014758,2]
[395093522,1764422770479,-10000.01,0.00014758,2]
[395093527,1764422782037,6670.1517,0.00014658,2]
[395093529,1764422789711,870.34518893,0.00014658,2]
[395093531,1764422794827,235.2676,0.00014658,2]
[395093535,1764422811908,500.0,0.00014649,2]
[395093538,1764422824646,280.8168,0.00014658,2]
[395093545,1764422838111,1000.0,0.00014658,2]
[395093546,1764422845219,443.42871107,0.00014658,2]
[395093547,1764422845247,10000.01,0.00014658,2]
[395093548,1764422845274,10000.01,0.00014658,2]
[395093549,1764422845301,10000.01,0.00014658,2]
[395093550,1764422845327,10000.01,0.00014658,2]
[395093551,1764422845354,10000.01,0.00014658,2]
[395093552,1764422845382,10000.01,0.00014658,2]
[395093553,1764422845410,10000.01,0.00014658,2]
[395093554,1764422845437,10000.01,0.00014658,2]
[395093555,1764422845464,10000.01,0.00014658,2]
[395093556,1764422845491,10000.01,0.00014658,2]
[395093557,1764422845516,10000.01,0.00014658,2]
[395093558,1764422845543,10000.01,0.00014658,2]
[395093559,1764422845570,10000.01,0.00014658,2]
[395093560,1764422845598,10000.01,0.00014658,2]
[395093561,1764422845633,110861.02121832,0.00014658,2]
[395093562,1764422845662,508695.41007061,0.00014658,2]
[395093564,1764422846626,-189.80341009,0.00014749,2]
[395093565,1764422849520,-163.83514386,0.00014749,2]
[395093566,1764422853711,-146.36144605,0.00014749,2]
[395093567,1764422853736,-89.40021932,0.00014749,2]
[395093573,1764422888097,7302.333915,7.945e-05,2]
[395093574,1764422890661,830.0,0.00014658,2]
[395093575,1764422891291,278.13815528,0.00014658,2]
[395093577,1764422891883,1000.0,0.000135,2]
[395093578,1764422893310,305.65891292,0.000125,2]
[395093579,1764422893655,283.8790168,0.00014658,2]
[395093580,1764422893679,3754.94052834,0.00014658,2]
[395093584,1764422900323,1321.4064631,0.0001,2]
[395093585,1764422902078,195.0,7.888e-05,2]
[395093586,1764422902103,194.40024064,7.888e-05,2]
[395093588,1764422911881,2719.91850894,0.0001,2]
[395093592,1764422918846,172.09,0.00011773,2]
[395093593,1764422920796,1837.25425898,0.0001,2]
[395093594,1764422920818,10000.01,0.0001,2]
[395093595,1764422920838,1612.63361913,0.0001,2]
[395093600,1764422928243,1852.42,0.00014698,2]
[395093606,1764422951462,387.6993,0.00014658,2]
[395093609,1764422970478,-110.59978068,0.00014749,2]
[395093610,1764422970501,-131.83514386,0.00014749,2]
[395093611,1764422982265,500.0,0.00014657,2]
[395093613,1764422998799,-2014.69,0.00014711,2]
[395093614,1764422999040,-4029.38,0.00014711,2]
[395093615,1764422999161,-1941.25,0.00014711,2]
[395093616,1764423006734,1000.0,0.00014658,2]
[395093617,1764423007882,242.434925,0.00014637,2]
[395093630,1764423016003,10000.01,0.00014658,2]
[395093631,1764423016037,10000.01,0.00014658,2]
[395093632,1764423016069,10000.01,0.00014658,2]
[395093633,1764423016099,10000.01,0.00014658,2]
[395093634,1764423016130,719999.96,0.00014658,2]
[395093637,1764423031590,1355.59,0.00014683,2]
[395093811,1764423034023,-300.0,0.00014748,2]
[395093813,1764423034037,-1200.0,0.00014748,2]
[395093816,1764423034047,-300.0,0.00014748,2]
[395093818,1764423034056,-210.0,0.00014748,2]
[395093820,1764423034065,-19.16485614,0.00014749,2]
[395093822,1764423034075,-151.0,0.00014749,2]
[395093824,1764423034085,-151.0,0.00014749,2]
[395093826,1764423034094,-151.0,0.00014749,2]
[395093828,1764423034103,-151.0,0.00014749,2]
[395093830,1764423034112,-151.0,0.00014749,2]
[395093832,1764423034122,-151.0,0.00014749,2]
[395093834,1764423034132,-151.0,0.00014749,2]
[395093836,1764423034141,-151.0,0.00014749,2]
[395093838,1764423034150,-151.0,0.00014749,2]
[395093840,1764423034160,-167.0818161,0.00014749,2]
[395093842,1764423034170,-500.0,0.00014757,2]
[395093844,1764423034180,-500.0,0.00014757,2]
[395093846,1764423034189,-500.0,0.00014757,2]
[395093848,1764423034198,-500.0,0.00014757,2]
[395093850,1764423034207,-500.0,0.00014757,2]
[395093852,1764423034217,-600.0,0.00014758,2]
[395093854,1764423034227,-200.0,0.00014758,2]
[395093856,1764423034236,-5962.3386434,0.00014758,2]
[395093858,1764423034245,-150.0,0.00014758,2]
[395093860,1764423034254,-76.09499457,0.00014759,2]
[395093946,1764423035043,-923.90500543,0.00014759,2]
[395093948,1764423035053,-6136.09499457,0.00014759,2]
[395093950,1764423035067,-1641.499992,0.00014759,2]
[395093952,1764423035078,-293.8647018,0.00014759,2]
[395093955,1764423035095,-14358.78871163,0.00014759,2]
[395093957,1764423035104,-366.78344995,0.00014845,2]
[395093959,1764423035114,-500.0,0.00014845,2]
[395093961,1764423035124,-500.0,0.00014845,2]